bitfinex/quotes_BTCUSD_20241117
["timestamp","ask_amount","ask_price","bid_price","bid_amount"]
[1731838177228,0.21871355,91198.0,91197.0,0.02768738]
[1731838177489,0.21871355,91198.0,91197.0,0.02467539]
[1731838177736,0.21071355,91198.0,91197.0,0.02467539]
[1731838178488,0.438573,91205.0,91197.0,0.02467539]
[1731838178489,0.219286,91205.0,91197.0,0.12418179]
[1731838178745,0.0755,91218.0,91199.0,0.109649]
[1731838178970,0.109641,91207.0,91200.0,0.02467539]
[1731838179194,0.109641,91206.0,91201.0,0.02467539]
[1731838179636,0.219281,91207.0,91202.0,0.02467539]
[1731838179857,0.219281,91207.0,91203.0,0.02467539]
[1731838180079,0.109643,91205.0,91204.0,0.02467539]
[1731838180326,0.109643,91205.0,91204.0,0.0276832]
[1731838180824,0.109643,91205.0,91204.0,0.02467539]
[1731838182864,0.10906255,91208.0,91196.0,0.04502364]
[1731838183092,0.109651,91199.0,91196.0,0.04502364]
[1731838183334,0.109651,91199.0,91197.0,0.01096579]
[1731838183556,0.109651,91199.0,91198.0,0.02467303]
[1731838184733,0.109648,91201.0,91198.0,0.03152668]
[1731838184952,0.109648,91201.0,91199.0,0.03152668]
[1731838185196,0.109648,91201.0,91200.0,0.03152668]
[1731838186115,0.219283,91206.0,91196.0,0.04502364]
[1731838186352,0.294755,91218.0,91200.0,0.25082232]
[1731838186566,0.16430164,91207.0,91202.0,0.109646]
[1731838186784,0.0008572,91205.0,91203.0,0.0137065]
[1731838187002,0.0008572,91205.0,91204.0,0.00685325]
[1731838187240,0.0008572,91205.0,91204.0,0.02055975]
[1731838187488,0.0008572,91205.0,91204.0,0.03152495]
[1731838187710,0.0008572,91205.0,91204.0,0.14116895]
[1731838188412,0.0008572,91205.0,91204.0,0.33708272]
[1731838188633,0.0008572,91205.0,91204.0,0.29164348]
[1731838188865,0.0008572,91205.0,91204.0,0.2916429]
[1731838189080,0.0008572,91205.0,91204.0,0.14229186]
[1731838189306,0.0008572,91205.0,91204.0,0.11762016]
[1731838190640,0.0008572,91205.0,91204.0,0.21590225]
[1731838191320,0.0008572,91205.0,91204.0,0.11762016]
[1731838191987,0.0008572,91205.0,91204.0,0.11262016]
[1731838192637,0.15715884,91211.0,91205.0,0.219285]
[1731838192856,0.15715884,91211.0,91208.0,0.109638]
[1731838193242,0.15715884,91211.0,91209.0,0.00295489]
[1731838193445,0.15715884,91211.0,91208.0,0.109638]
[1731838193576,0.15715884,91211.0,91210.0,0.00295385]
[1731838193798,0.26679384,91211.0,91209.0,0.00277028]
[1731838194025,0.2201101,91219.0,91201.0,0.0117144]
[1731838194247,0.109646,91202.0,91201.0,0.0017144]
[1731838194718,0.21870855,91202.0,91201.0,0.0017144]
[1731838194999,0.26470855,91202.0,91201.0,0.0017144]
[1731838195218,0.26470855,91202.0,91201.0,0.03324272]
[1731838196551,0.21870855,91202.0,91201.0,0.03324272]
[1731838197009,0.34490855,91202.0,91201.0,0.03324272]
[1731838197494,0.34490855,91202.0,91201.0,0.01953714]
[1731838197963,0.34490855,91202.0,91201.0,0.0085693]
[1731838200314,0.34990855,91202.0,91201.0,0.0085693]
[1731838201049,0.34990855,91202.0,91201.0,0.0017144]
[1731838201295,0.34990855,91202.0,91201.0,0.00856979]
[1731838202157,0.34990855,91202.0,91201.0,0.0017144]
[1731838203326,0.34990855,91202.0,91201.0,0.00856978]
[1731838203579,0.34990855,91202.0,91201.0,0.0017144]
[1731838204006,0.34990855,91202.0,91201.0,0.00856976]
[1731838204675,0.34990855,91202.0,91201.0,0.0017144]
[1731838205150,0.34490855,91202.0,91201.0,0.0017144]
[1731838205571,0.24026255,91202.0,91201.0,0.00685527]
[1731838205768,0.34990855,91202.0,91201.0,0.00685527]
[1731838206419,0.35490855,91202.0,91201.0,0.00685527]
[1731838206671,0.35490855,91202.0,91168.0,0.0995064]
[1731838206672,0.109682,91172.0,91168.0,0.0995064]
[1731838206927,0.109684,91171.0,91169.0,0.02056569]
[1731838207160,0.109684,91171.0,91170.0,0.0137107]
[1731838207374,0.26624655,91171.0,91170.0,0.03153464]
[1731838207661,0.25824655,91171.0,91170.0,0.03153464]
[1731838207846,0.101684,91171.0,91170.0,0.03153464]
[1731838208068,0.219338,91184.0,91170.0,0.03153464]
[1731838208319,0.109682,91173.0,91171.0,0.03153464]
[1731838208544,0.219348,91179.0,91172.0,0.03153464]
[1731838208755,0.109681,91173.0,91169.0,0.0824]
[1731838209000,0.005,91185.0,91170.0,0.03153516]
[1731838209209,0.109672,91181.0,91172.0,0.219365]
[1731838209435,0.109672,91181.0,91176.0,0.109677]
[1731838209637,0.109672,91181.0,91177.0,0.03153516]
[1731838209638,0.219343,91181.0,91177.0,0.03153516]
[1731838209864,0.219346,91180.0,91178.0,0.03153399]
[1731838210079,0.109673,91180.0,91179.0,0.02056564]
[1731838210299,0.109673,91180.0,91179.0,0.03153399]
[1731838210502,0.27397464,91180.0,91179.0,0.03153399]
[1731838210727,0.235473,91180.0,91179.0,0.01782356]
[1731838211151,0.235473,91180.0,91179.0,0.01782469]
[1731838212243,0.235473,91180.0,91179.0,0.10782469]
[1731838213302,0.235473,91180.0,91179.0,0.01782469]
[1731838213512,0.235473,91180.0,91179.0,0.01782459]
[1731838213717,0.34953555,91180.0,91179.0,0.01782459]
[1731838215298,0.34953555,91180.0,91179.0,0.00685561]
[1731838215573,0.34953555,91180.0,91179.0,0.01782532]
[1731838216224,0.160573,91180.0,91179.0,0.01782532]
[1731838216440,0.114673,91180.0,91179.0,0.01782532]
[1731838216639,0.114673,91180.0,91179.0,0.03153699]
[1731838216849,0.219359,91175.0,91170.0,0.0800146]
[1731838217104,0.114673,91180.0,91179.0,0.01623102]
[1731838217320,0.160573,91180.0,91179.0,0.01371166]
[1731838217524,0.219362,91174.0,91170.0,0.01121159]
[1731838217728,0.109684,91171.0,91170.0,0.01121159]
[1731838217938,0.219356,91176.0,91170.0,0.13274841]
[1731838218153,0.109679,91175.0,91174.0,0.00949699]
[1731838218354,0.109679,91175.0,91174.0,0.03153682]
[1731838218568,0.109679,91175.0,91174.0,0.03405618]
[1731838219454,0.109679,91175.0,91174.0,0.03153682]
[1731838220112,0.219356,91176.0,91174.0,0.0315353]
[1731838220324,0.109679,91175.0,91174.0,0.0068555]
[1731838220581,0.109679,91175.0,91174.0,0.03153532]
[1731838222548,0.101679,91175.0,91174.0,0.04104185]
[1731838222957,0.25664155,91175.0,91174.0,0.03153532]
[1731838223176,0.34154155,91175.0,91174.0,0.03153532]
[1731838223386,0.109682,91172.0,91171.0,0.001715]
[1731838223608,0.21874455,91172.0,91171.0,0.091715]
[1731838223818,0.21874455,91172.0,91171.0,0.11639864]
[1731838224240,0.21874455,91172.0,91171.0,0.00857157]
[1731838224481,0.21874455,91172.0,91171.0,0.0332557]
[1731838225744,0.22374455,91172.0,91171.0,0.0332557]
[1731838228307,0.27054455,91172.0,91171.0,0.0332557]
[1731838228755,0.35124455,91172.0,91171.0,0.0332557]
[1731838229415,0.35124455,91172.0,91171.0,0.01954235]
[1731838229838,0.35124455,91172.0,91171.0,0.00857167]
[1731838230510,0.35124455,91172.0,91171.0,0.01954407]
[1731838230758,0.35124455,91172.0,91171.0,0.00857167]
[1731838230982,0.35124455,91172.0,91171.0,0.0195451]
[1731838233366,0.35124455,91172.0,91171.0,0.00857275]
[1731838233574,0.35124455,91172.0,91171.0,0.001715]
[1731838233792,0.35124455,91172.0,91171.0,0.00857268]
[1731838235134,0.124684,91171.0,91170.0,2.8e-07]
[1731838235346,0.48714655,91171.0,91170.0,2.8e-07]
[1731838237525,0.47914655,91171.0,91170.0,2.8e-07]
[1731838237761,0.37283779,91171.0,91170.0,2.8e-07]
[1731838237993,0.37283779,91171.0,91170.0,0.01097209]
[1731838239873,0.35114655,91171.0,91170.0,0.01097209]
[1731838240112,0.27004655,91171.0,91170.0,0.01097209]
[1731838240595,0.27004655,91171.0,91170.0,0.01097177]
[1731838242079,0.21874655,91171.0,91170.0,0.0246858]
[1731838242274,0.22074655,91171.0,91170.0,0.0246858]
[1731838242521,0.22074655,91171.0,91170.0,0.02468492]
[1731838242731,0.109684,91171.0,91170.0,0.02468492]
[1731838242989,0.109684,91171.0,91170.0,0.02968492]
[1731838243206,0.219362,91174.0,91170.0,0.02968492]
[1731838243432,0.0008575,91175.0,91174.0,0.005]
[1731838243665,0.0008575,91175.0,91174.0,0.02968464]
[1731838243893,0.0008575,91175.0,91174.0,0.11844652]
[1731838244120,0.0008575,91175.0,91174.0,0.03344722]
[1731838245457,0.1105365,91175.0,91174.0,0.12344722]
[1731838246339,0.0008575,91175.0,91174.0,0.12344722]
[1731838246802,0.0008575,91175.0,91174.0,0.23312722]
[1731838247217,0.0008575,91175.0,91174.0,0.23998246]
[1731838247458,0.0008575,91175.0,91174.0,0.28388246]
[1731838247690,0.0008575,91175.0,91174.0,0.37188246]
[1731838247911,0.16430164,91185.0,91184.0,0.192668]
[1731838248174,0.16430164,91185.0,91184.0,0.22794424]
[1731838248411,0.27396864,91185.0,91184.0,0.11827624]
[1731838248641,0.27396864,91185.0,91184.0,0.04027624]
[1731838248642,0.109667,91185.0,91184.0,0.04027624]
[1731838249062,0.109667,91185.0,91184.0,0.03653594]
[1731838249288,0.21872955,91185.0,91184.0,0.03153594]
[1731838250389,0.21872955,91185.0,91184.0,0.01782444]
[1731838250607,0.22072955,91185.0,91184.0,0.01782444]
[1731838250823,0.22072955,91185.0,91184.0,0.00685524]
[1731838251066,0.22072955,91185.0,91179.0,0.005]
[1731838251067,0.109673,91180.0,91179.0,0.005]
[1731838251285,0.109673,91180.0,91179.0,0.02556677]
[1731838251489,0.109673,91180.0,91179.0,0.03653563]
[1731838252459,0.101673,91180.0,91179.0,0.03653563]
[1731838253130,0.002,91182.0,91177.0,0.005]
[1731838253334,0.109673,91180.0,91179.0,0.0068556]
[1731838253570,0.109673,91180.0,91179.0,0.0255668]
[1731838253790,0.109673,91180.0,91179.0,0.02742235]
[1731838253997,0.109673,91180.0,91179.0,0.03153571]
[1731838253998,0.38303719,91180.0,91179.0,0.03153571]
[1731838254220,0.33973555,91180.0,91179.0,0.01782456]
[1731838254663,0.33973555,91180.0,91179.0,0.0068556]
[1731838255354,0.34173555,91180.0,91179.0,0.0068556]
[1731838256053,0.38627838,91180.0,91179.0,0.0068556]
[1731838256697,0.38627838,91180.0,91170.0,2.8e-07]
[1731838256698,0.046,91172.0,91170.0,2.8e-07]
[1731838256923,0.21874655,91171.0,91170.0,2.8e-07]
[1731838257135,0.21874655,91171.0,91170.0,0.00685703]
[1731838257340,0.22074655,91171.0,91170.0,0.00685703]
[1731838257778,0.21874655,91171.0,91170.0,0.00685703]
[1731838257986,0.22074655,91171.0,91170.0,0.00685703]
[1731838259053,0.22074655,91171.0,91170.0,0.01185703]
[1731838259483,0.220215,91175.0,91174.0,0.005]
[1731838259484,0.000857,91175.0,91174.0,0.005]
[1731838259711,0.000857,91175.0,91174.0,0.02282726]
[1731838259949,0.000857,91175.0,91174.0,0.03653904]
[1731838260164,0.000857,91175.0,91174.0,0.04028711]
[1731838260385,0.110536,91175.0,91174.0,0.03153904]
[1731838260830,0.329896,91175.0,91174.0,0.03653619]
[1731838261047,0.329896,91175.0,91174.0,0.03153619]
[1731838261300,0.329896,91175.0,91174.0,0.0178248]
[1731838261510,0.43895855,91175.0,91174.0,0.0178248]
[1731838266017,0.44095855,91175.0,91174.0,0.0178248]
[1731838266247,0.44095855,91175.0,91174.0,0.01782613]
[1731838266492,0.44095855,91175.0,91174.0,0.00685569]
[1731838266736,0.000857,91175.0,91174.0,0.03653873]
[1731838266964,0.110536,91175.0,91174.0,0.03653873]
[1731838267175,0.110536,91175.0,91174.0,0.0402895]
[1731838267620,0.102536,91175.0,91174.0,0.03653873]
[1731838268474,0.102536,91175.0,91174.0,0.04029156]
[1731838269774,0.102536,91175.0,91174.0,0.04200556]
[1731838270001,0.000857,91180.0,91179.0,0.114674]
[1731838270221,0.000857,91180.0,91179.0,0.25964823]
[1731838270436,0.000857,91180.0,91179.0,0.47584731]
[1731838271546,0.000857,91180.0,91179.0,0.57409233]
[1731838271765,0.000857,91180.0,91179.0,0.47584731]
[1731838271980,0.000857,91180.0,91179.0,0.52431629]
[1731838272191,0.000857,91180.0,91179.0,0.6472377]
[1731838272403,0.000857,91180.0,91179.0,0.65409177]
[1731838272855,0.000857,91180.0,91179.0,0.55584501]
[1731838276502,0.000857,91180.0,91179.0,0.66690756]
[1731838276757,0.000857,91180.0,91179.0,0.63537884]
[1731838276966,0.000857,91180.0,91179.0,0.65319872]
[1731838280137,0.0008573,91206.0,91205.0,0.04020157]
[1731838280608,0.0008573,91206.0,91205.0,0.04020077]
[1731838281053,0.0008573,91206.0,91205.0,0.14616703]
[1731838281257,0.0008573,91206.0,91205.0,0.03652403]
[1731838281475,0.0008573,91206.0,91205.0,0.04020077]
[1731838282171,0.0008573,91206.0,91205.0,0.04963912]
[1731838282627,0.109639,91208.0,91205.0,0.04020077]
[1731838282852,0.266673,91211.0,91206.0,0.03152403]
[1731838283060,0.266673,91211.0,91207.0,0.03152403]
[1731838283287,0.266673,91211.0,91208.0,0.03152395]
[1731838283502,0.109637,91210.0,91209.0,0.03152395]
[1731838284703,0.109637,91210.0,91209.0,0.03652395]
[1731838285142,0.109637,91210.0,91209.0,0.04013883]
[1731838285782,0.109637,91210.0,91209.0,0.03652395]
[1731838286934,0.109637,91210.0,91209.0,0.02967089]
[1731838287182,0.109637,91210.0,91209.0,0.03652391]
[1731838287401,0.109637,91210.0,91209.0,0.04013439]
[1731838288342,0.109637,91210.0,91209.0,0.03652391]
[1731838289215,0.109637,91210.0,91209.0,0.04594582]
[1731838289427,0.109637,91210.0,91209.0,0.03652391]
[1731838289890,0.109637,91210.0,91209.0,0.04595086]
[1731838290106,0.109637,91210.0,91209.0,0.03652391]
[1731838291656,0.109637,91210.0,91209.0,0.05652391]
[1731838294293,0.110494,91210.0,91209.0,0.06012599]
[1731838294705,0.000857,91210.0,91209.0,0.06012599]
[1731838294926,0.110494,91210.0,91209.0,0.03652391]
[1731838295139,0.110494,91210.0,91209.0,0.04012707]
[1731838296688,0.000857,91210.0,91209.0,0.04012707]
[1731838296922,0.110494,91210.0,91209.0,0.04012707]
[1731838297184,0.000857,91210.0,91209.0,0.02642054]
[1731838297447,0.002,91213.0,91209.0,0.02642054]
[1731838297448,0.102493,91211.0,91209.0,0.02642054]
[1731838297671,0.102493,91211.0,91210.0,0.01370568]
[1731838297903,0.102493,91211.0,91210.0,0.10152299]
[1731838298114,0.102493,91211.0,91210.0,0.10512783]
[1731838300977,0.102493,91211.0,91210.0,0.08045772]
[1731838301201,0.102493,91211.0,91210.0,0.10512811]
[1731838301406,0.102493,91211.0,91210.0,0.1297985]
[1731838303771,0.102493,91211.0,91210.0,0.0597985]
[1731838303998,0.102493,91211.0,91210.0,0.03512811]
[1731838304223,0.102493,91211.0,91210.0,0.00360484]
[1731838304432,0.102493,91211.0,91210.0,0.03512792]
[1731838306631,0.1033497,91211.0,91210.0,0.03512792]
[1731838307280,0.1033497,91211.0,91210.0,0.03512806]
[1731838307755,0.1033497,91211.0,91210.0,0.03512788]
[1731838308843,0.1033497,91211.0,91210.0,0.12512788]
[1731838312453,0.0953497,91211.0,91210.0,0.12512788]
[1731838312890,0.0953497,91211.0,91210.0,0.03512788]
[1731838315825,0.0953497,91211.0,91210.0,0.12512788]
[1731838320352,0.0953497,91211.0,91210.0,0.12684128]
[1731838321467,0.0953497,91211.0,91210.0,0.22540395]
[1731838321916,0.0953497,91211.0,91210.0,0.12684128]
[1731838322145,0.0953497,91211.0,91210.0,0.22543651]
[1731838322587,0.0953497,91211.0,91210.0,0.12684128]
[1731838322799,0.0008567,91211.0,91210.0,0.50403435]
[1731838323029,0.0482571,91219.0,91210.0,0.50403435]
[1731838323030,0.0008571,91219.0,91218.0,0.109627]
[1731838323311,0.0008571,91219.0,91218.0,0.03577817]
[1731838323556,0.0008571,91219.0,91218.0,0.28217064]
[1731838323793,0.0008571,91219.0,91218.0,0.28717064]
[1731838324025,0.0008571,91219.0,91218.0,0.02021778]
[1731838324266,0.0008571,91219.0,91218.0,0.04077274]
[1731838324704,0.0008571,91219.0,91218.0,0.15039974]
[1731838324928,0.0008571,91219.0,91218.0,0.39671871]
[1731838325154,0.0008571,91219.0,91218.0,0.15039974]
[1731838325599,0.0008571,91219.0,91218.0,0.15259202]
[1731838325839,0.0008571,91219.0,91218.0,0.15039974]
[1731838326059,0.0008571,91219.0,91218.0,0.15259202]
[1731838326490,0.0008571,91219.0,91218.0,0.39881618]
[1731838326709,0.0008571,91219.0,91218.0,0.3966239]
[1731838326937,0.0008571,91219.0,91218.0,0.23239974]
[1731838327589,0.15715874,91229.0,91228.0,0.114615]
[1731838327804,0.15715874,91229.0,91228.0,0.14613261]
[1731838328020,0.15715874,91229.0,91228.0,0.15035111]
[1731838328241,0.0467,91233.0,91232.0,0.005]
[1731838328472,0.0467,91233.0,91232.0,0.12557265]
[1731838328702,0.0467,91233.0,91232.0,0.03651761]
[1731838328921,0.156309,91233.0,91232.0,0.04073123]
[1731838329604,0.156309,91233.0,91232.0,0.04415678]
[1731838330295,0.0467,91233.0,91232.0,0.04415678]
[1731838330522,0.0008569,91236.0,91235.0,0.005]
[1731838330739,0.1104619,91236.0,91235.0,0.03308932]
[1731838330989,0.1104619,91236.0,91235.0,0.03994037]
[1731838331223,0.1104619,91236.0,91235.0,0.03651522]
[1731838331442,0.1104619,91236.0,91235.0,0.03994078]
[1731838332768,0.109613,91230.0,91224.0,0.109619]
[1731838332994,0.1104619,91236.0,91235.0,0.00422634]
[1731838333215,0.0008569,91236.0,91233.0,0.00944298]
[1731838333461,0.109608,91234.0,91233.0,0.00944298]
[1731838333723,0.109608,91234.0,91222.0,0.005]
[1731838333724,0.10961,91232.0,91231.0,0.00944298]
[1731838334172,0.10961,91232.0,91222.0,0.005]
[1731838334173,0.109615,91228.0,91222.0,0.114621]
[1731838334396,0.109615,91228.0,91223.0,0.109621]
[1731838335080,0.109616,91227.0,91222.0,0.005]
[1731838335313,0.219216,91235.0,91225.0,0.109618]
[1731838335524,0.109612,91231.0,91225.0,0.109618]
[1731838335740,0.16430164,91232.0,91227.0,0.109616]
[1731838335974,0.27391164,91232.0,91227.0,0.109616]
[1731838336213,0.27391164,91232.0,91225.0,0.109618]
[1731838336434,0.27391164,91232.0,91224.0,0.21924]
[1731838336636,0.16430164,91232.0,91228.0,0.109615]
[1731838337937,0.109609,91233.0,91228.0,0.109615]
[1731838338156,0.109608,91234.0,91228.0,0.109615]
[1731838338372,0.219216,91235.0,91229.0,0.02475722]
[1731838338595,0.0008572,91239.0,91230.0,0.02055283]
[1731838338861,0.1104592,91239.0,91232.0,0.109609]
[1731838339081,0.0008572,91239.0,91231.0,0.02055283]
[1731838339292,0.0008572,91239.0,91233.0,0.00420653]
[1731838339509,0.1104602,91239.0,91234.0,0.02055283]
[1731838339719,0.109604,91238.0,91235.0,0.02055283]
[1731838340166,0.109604,91238.0,91236.0,0.02055283]
[1731838340390,0.0008572,91239.0,91237.0,0.02055283]
[1731838340615,0.0008572,91239.0,91238.0,0.13015583]
[1731838340836,0.0008572,91239.0,91238.0,0.21895383]
[1731838341060,0.0008572,91239.0,91238.0,0.0439201]
[1731838341318,0.0008572,91239.0,91238.0,0.15523458]
[1731838341583,0.0008572,91239.0,91238.0,0.22614557]
[1731838341798,0.0008572,91239.0,91238.0,0.22395183]
[1731838342437,0.0008572,91239.0,91238.0,0.22395162]
[1731838342654,0.109588,91251.0,91238.0,0.22395162]
[1731838342655,0.1033026,91251.0,91240.0,0.219202]
[1731838342890,0.109586,91253.0,91244.0,0.219192]
[1731838343127,0.16430164,91248.0,91247.0,0.109592]
[1731838343342,0.002,91251.0,91247.0,0.045212]
[1731838343559,0.002,91251.0,91250.0,0.109589]
[1731838343773,0.002,91251.0,91250.0,0.154801]
[1731838344008,0.002,91251.0,91250.0,0.04938042]
[1731838344228,0.111587,91251.0,91250.0,0.04938042]
[1731838344672,0.002,91251.0,91250.0,0.04938042]
[1731838344894,0.34384955,91251.0,91250.0,0.05548653]
[1731838345131,0.34384955,91251.0,91250.0,0.05206169]
[1731838345346,0.34384955,91251.0,91250.0,0.03150886]
[1731838348480,0.34384955,91251.0,91250.0,0.05206055]
[1731838348710,0.34077469,91251.0,91250.0,0.05206055]
[1731838348936,0.52920542,91251.0,91250.0,0.03150886]
[1731838349641,0.46377469,91251.0,91250.0,0.03150886]
[1731838349859,0.46377469,91251.0,91250.0,0.03093486]
[1731838350505,0.52920542,91251.0,91250.0,0.03093486]
[1731838351394,0.54120542,91251.0,91250.0,0.03093486]
[1731838351607,0.54120542,91251.0,91214.0,0.16430164]
[1731838351608,0.30515173,91223.0,91214.0,0.16430164]
[1731838351828,0.41621428,91223.0,91214.0,0.16430164]
[1731838352045,0.41621428,91223.0,91210.0,0.0017134]
[1731838352492,0.35078355,91223.0,91210.0,0.0017134]
[1731838357681,0.34278355,91223.0,91210.0,0.0017134]
[1731838358378,0.38704632,91223.0,91210.0,0.0017134]
[1731838359271,0.151921,91223.0,91211.0,0.00219269]
[1731838359498,0.103621,91223.0,91222.0,0.01541886]
[1731838361322,0.002,91233.0,91222.0,0.01541886]
[1731838361539,0.109615,91228.0,91223.0,0.10989512]
[1731838361755,0.109615,91228.0,91224.0,0.03768484]
[1731838361978,0.109615,91228.0,91225.0,0.024667]
[1731838362203,0.109616,91227.0,91226.0,0.01370389]
[1731838362493,0.109616,91227.0,91226.0,0.024667]
[1731838363566,0.109616,91227.0,91226.0,0.03151926]
[1731838368859,0.109616,91227.0,91226.0,0.05207532]
[1731838369290,0.109616,91227.0,91226.0,0.05378792]
[1731838369503,0.109616,91227.0,91226.0,0.03323186]
[1731838369722,0.219223,91231.0,91226.0,0.0374994]
[1731838369946,0.002,91232.0,91227.0,0.03151926]
[1731838370232,0.002,91232.0,91226.0,0.00598014]
[1731838370233,0.109614,91229.0,91228.0,0.03151926]
[1731838370457,0.109614,91229.0,91228.0,0.035779]
[1731838370676,0.10961,91233.0,91228.0,0.0597606]
[1731838370894,0.10961,91233.0,91229.0,0.05550086]
[1731838371107,0.10961,91233.0,91230.0,0.05550086]
[1731838371338,0.10961,91233.0,91231.0,0.05550077]
[1731838371563,0.10961,91233.0,91230.0,0.00425867]
[1731838371564,0.10961,91233.0,91232.0,0.05550077]
[1731838371801,0.10961,91233.0,91224.0,0.28466973]
[1731838371802,0.023,91216.0,91213.0,0.09821393]
[1731838372023,0.239635,91211.0,91210.0,0.0017134]
[1731838372289,0.50109646,91211.0,91210.0,0.0017134]
[1731838372523,0.43566573,91211.0,91210.0,0.0017134]
[1731838372763,0.42766573,91211.0,91210.0,0.0017134]
[1731838372997,0.53672828,91211.0,91210.0,0.0017134]
[1731838374339,0.57474197,91211.0,91210.0,0.0017134]
[1731838374556,0.56974197,91211.0,91210.0,0.0017134]
[1731838374777,0.46129755,91211.0,91210.0,0.0017134]
[1731838375244,0.150435,91211.0,91210.0,0.0017134]
[1731838375508,0.219257,91217.0,91210.0,0.0017134]
[1731838375723,0.109635,91211.0,91210.0,0.0017134]
[1731838379885,0.109635,91211.0,91210.0,0.01541899]
[1731838381004,0.109635,91211.0,91210.0,0.02330564]
[1731838381005,0.20937845,91211.0,91210.0,0.02330564]
[1731838381227,0.20937845,91211.0,91210.0,0.01541899]
[1731838381457,0.20937845,91211.0,91210.0,0.01541995]
[1731838382525,0.20937845,91211.0,91210.0,0.02638567]
[1731838383883,0.20937845,91211.0,91210.0,0.03323923]
[1731838384144,0.109635,91211.0,91210.0,0.03323923]
[1731838385920,0.219238,91225.0,91210.0,0.0366658]
[1731838386151,0.16430164,91224.0,91220.0,0.109625]
[1731838386381,0.109622,91222.0,91221.0,0.02056011]
[1731838386613,0.109622,91222.0,91221.0,0.0387079]
[1731838386819,0.109622,91222.0,91221.0,0.0349524]
[1731838387686,0.002,91232.0,91221.0,0.03870771]
[1731838387895,0.219226,91230.0,91222.0,0.0349524]
[1731838388115,0.219228,91229.0,91223.0,0.0349524]
[1731838388318,0.10962,91224.0,91223.0,0.00342657]
[1731838388523,0.109619,91225.0,91224.0,0.01438882]
[1731838388729,0.109619,91225.0,91224.0,0.03151837]
[1731838388928,0.109619,91225.0,91224.0,0.03494428]
[1731838389607,0.002,91229.0,91224.0,0.03494428]
[1731838389820,0.328845,91228.0,91225.0,0.02466655]
[1731838390043,0.109617,91226.0,91225.0,0.00342591]
[1731838390264,0.219233,91227.0,91225.0,0.0349443]
[1731838390467,0.328855,91226.0,91217.0,0.16430164]
[1731838390689,0.109618,91226.0,91220.0,0.109624]
[1731838390897,0.109619,91225.0,91221.0,0.0349443]
[1731838391103,0.109619,91225.0,91222.0,0.00342591]
[1731838391325,0.109619,91225.0,91223.0,0.0349443]
[1731838391561,0.219227,91230.0,91224.0,0.03151839]
[1731838391773,0.109619,91225.0,91224.0,0.03494428]
[1731838391975,0.002,91229.0,91225.0,0.00685182]
[1731838392184,0.21923,91228.0,91226.0,0.02466655]
[1731838392360,0.109615,91228.0,91227.0,0.02809246]
[1731838392963,0.109615,91228.0,91227.0,0.03494428]
[1731838394348,0.109615,91228.0,91227.0,0.03151837]
[1731838394892,0.109615,91228.0,91227.0,0.03494427]
[1731838395314,0.109615,91228.0,91222.0,0.109622]
[1731838395538,0.109615,91228.0,91227.0,0.01370263]
[1731838395714,0.109615,91228.0,91227.0,0.03494179]
[1731838398105,0.109615,91228.0,91227.0,0.03866779]
[1731838398648,0.109615,91228.0,91227.0,0.02496448]
[1731838398849,0.109615,91228.0,91227.0,0.03866673]
[1731838399252,0.0008567,91230.0,91229.0,0.109614]
[1731838399462,0.0008567,91230.0,91229.0,0.14455473]
[1731838399672,0.0008567,91230.0,91229.0,0.14823455]
[1731838400101,0.0008567,91230.0,91229.0,0.15371493]
[1731838400928,0.219194,91243.0,91229.0,0.04410093]
[1731838401135,0.002,91244.0,91230.0,0.03494073]
[1731838401440,0.109605,91237.0,91232.0,0.10961]
[1731838401647,0.109605,91237.0,91233.0,0.03494073]
[1731838401851,0.109605,91237.0,91234.0,0.03494073]
[1731838402070,0.109605,91237.0,91235.0,0.03494073]
[1731838402343,0.109605,91237.0,91236.0,0.01781115]
[1731838402519,0.109602,91239.0,91236.0,0.03493726]
[1731838402764,0.109603,91238.0,91237.0,0.01370089]
[1731838402976,0.08,91250.0,91237.0,0.03493726]
[1731838403178,0.08,91250.0,91238.0,0.03151204]
[1731838403179,0.10906255,91249.0,91238.0,0.03151204]
[1731838403396,0.002,91248.0,91239.0,0.03151204]
[1731838403618,0.109592,91247.0,91240.0,0.03493726]
[1731838403832,0.219187,91246.0,91235.0,0.00548035]
[1731838404046,0.109598,91242.0,91241.0,0.00368484]
[1731838404262,0.109598,91242.0,91241.0,0.03493622]
[1731838404906,0.0028563,91251.0,91241.0,0.03493622]
[1731838405021,0.002,91250.0,91246.0,0.109593]
[1731838405227,0.0008563,91251.0,91247.0,0.25412022]
[1731838405429,0.0008563,91251.0,91250.0,0.109589]
[1731838405792,0.0008563,91251.0,91250.0,0.14452476]
[1731838405992,0.0008563,91251.0,91250.0,0.14818259]
[1731838408248,0.0008563,91251.0,91250.0,0.03859359]
[1731838408449,0.0008563,91251.0,91250.0,0.14818259]
[1731838408799,0.0008563,91251.0,91250.0,0.03859359]
[1731838409210,0.0008563,91251.0,91250.0,0.02123291]
[1731838409421,0.1104433,91251.0,91250.0,0.01050625]
[1731838409641,0.1104433,91251.0,91250.0,0.03173882]
[1731838410043,0.1104433,91251.0,91250.0,0.03858803]
[1731838411056,0.1104433,91251.0,91250.0,0.03493098]
[1731838411367,0.1104433,91251.0,91250.0,0.03856385]
[1731838411660,0.1104433,91251.0,91250.0,0.03493098]
[1731838411879,0.1575433,91251.0,91250.0,0.03493098]
[1731838412072,0.2363433,91251.0,91250.0,0.03150638]
[1731838413447,0.2383433,91251.0,91250.0,0.04246858]
[1731838413663,0.2383433,91251.0,91250.0,0.03150984]
[1731838414584,0.4471493,91251.0,91250.0,0.03150984]
[1731838415470,0.548022,91237.0,91231.0,0.16430164]
[1731838415696,0.328813,91237.0,91236.0,0.00752711]
[1731838415967,0.328813,91237.0,91232.0,0.00342543]
[1731838415968,0.109609,91233.0,91232.0,0.00362586]
[1731838416199,0.10961,91232.0,91231.0,0.16430164]
[1731838416427,0.109617,91227.0,91220.0,0.109624]
[1731838416644,0.109617,91227.0,91221.0,0.00342547]
[1731838416873,0.219221,91232.0,91221.0,0.11667646]
[1731838417084,0.109617,91227.0,91222.0,0.00342547]
[1731838417319,0.109617,91227.0,91223.0,0.00342547]
[1731838417549,0.109617,91227.0,91224.0,0.00342547]
[1731838417823,0.219228,91229.0,91225.0,0.00342547]
[1731838417824,0.109618,91226.0,91225.0,0.00342547]
[1731838418026,0.109618,91226.0,91225.0,0.00708311]
[1731838418494,0.109618,91226.0,91225.0,0.00342547]
[1731838423420,0.224221,91232.0,91217.0,0.16430164]
[1731838423642,0.109624,91221.0,91218.0,0.08]
[1731838423868,0.109624,91221.0,91219.0,0.01370267]